[Event "European Women Blitz-ch 2024"]
[Site "Monaco"]
[Date "2025.01.10"]
[Round "7.9"]
[White "Khotenashvili, Bella"]
[Black "Savina, Anastasia"]
[Result "1-0"]
[Annotator "TA"]
[ECO "A04"]
[WhiteElo "2420"]
[BlackElo "2318"]
[PlyCount "73"]
[EventDate "2025.01.06"]
[EventType "swiss"]
[EventCountry "MNC"]
[SourceTitle "playchess.com"]
[Source "ChessBase"]
[SourceQuality "1"]
[TimeControl "180+2"]

{[%evp 9,73,0,0,0,0,0,0,0,2,0,15,16,120,66,62,16,79,99,93,106,102,82,66,67,135,93,116,114,193,106,171,175,170,149,389,249,463,475,458,461,615,498,500,507,545,516,598,468,426,410,529,529,541,553,602,560,618,608,885,695,913,920,29989,29990,29991,29992]} 1. Nf3 {[%emt 0:00:03]} d6 {[%emt 0:00:26]} 2. g3 {[%emt 0:00:03]} e5 {[%emt 0:00:04]} 3. d3 {[%emt 0:00:10]} Nc6 {[%emt 0:00:05]} 4. c4 {[%emt 0:00:06]} g6 {[%emt 0:00:15]} 5. Nc3 {[%emt 0:00:03]} Bg7 {[%emt 0:00:02]} 6. Rb1 {[%emt 0:00:01]} a5 {[%emt 0:00:05]} 7. Bg2 {[%emt 0:00:06]} Nge7 {[%emt 0:00:07]} 8. h4 {[%emt 0:00:58]} Bg4 {[%emt 0:00:20]} 9. Nh2 {[%emt 0:00:07]} Be6 {[%emt 0:00:03]} 10. h5 {[%emt 0:00:03]} d5 {[%emt 0:00:25] [#]} (10... h6 $11 {keeps the balance.}) 11. cxd5 {[%emt 0:00:21]} (11. Bg5 $1 $16 h6 12. cxd5 hxg5 13. dxe6 (13. dxc6 Nxc6 14. hxg6 f5 $16)) 11... Nxd5 $14 {[%emt 0:00:02]} 12. Nf1 {[%emt 0:00:05]} (12. Nf3 $14 {is more appropriate.}) 12... gxh5 {[%emt 0:00:33]} (12... f5 $11) 13. Rxh5 {[%emt 0:00:11]} Nce7 {[%emt 0:00:11]} 14. Ne3 {[%emt 0:00:09]} c6 {[%emt 0:00:07]} 15. a3 {[%emt 0:00:07]} Nxe3 {[%emt 0:00:11]} 16. Bxe3 {[%emt 0:00:02]} Nd5 {[%emt 0:00:02]} ({Black should try} 16... f5 $14) 17. Bd2 {[%emt 0:00:06]} Qd7 {[%emt 0:00:10]} 18. Qa4 {[%emt 0:00:05]} Nxc3 {[%emt 0:00:23]} (18... f5 $16 {was worth a try.}) 19. Bxc3 {[%emt 0:00:06]} (19. bxc3 $18 {[%cal Ob1b7] And now Rxb7! would win.} Kf8 20. Bf3) 19... f6 {[%emt 0:00:01] [#]} (19... f5 $16) 20. b4 $1 $18 {[%emt 0:00:13]} ({Stronger than} 20. Bxa5 Bd5 21. Bh3 Qf7 $11) 20... O-O {[%emt 0:00:04]} 21. bxa5 {[%emt 0:00:02]} Bd5 $2 {[%emt 0:00:03]} (21... Rf7 $16 22. Kf1 Bf8) 22. Be4 {[%emt 0:00:07]} b5 $2 {[%emt 0:00:03]} (22... Bxe4 23. Qxe4 f5 24. Qc4+ Kh8) 23. Bxh7+ {[%emt 0:00:06]} Kf7 {[%emt 0:00:01]} 24. Qh4 {[%emt 0:00:03]} c5 {[%emt 0:00:03]} 25. Bf5 {[%emt 0:00:05]} Be6 {[%emt 0:00:02]} 26. Bxe6+ {[%emt 0:00:08]} Qxe6 {[%emt 0:00:01]} 27. Rxb5 {[%emt 0:00:05]} Rfb8 {[%emt 0:00:02] Prevents Rb7+.} 28. Rxb8 {[%emt 0:00:04]} Rxb8 {[%emt 0:00:01][%cal Ba8b8,Bb8b1,Bb1c1][%mdl 32]} 29. Qc4 {[%emt 0:00:01]} Rb1+ {[%emt 0:00:04]} 30. Kd2 {[%emt 0:00:01][%cal Be1d2,Bd2c2,Bc2b2][%mdl 32]} Qxc4 {[%emt 0:00:02]} 31. dxc4 {[%emt 0:00:01][%mdl 4096] Endgame KRB-KRB. White is 3 pawns up.} Kg6 {[%emt 0:00:01]} 32. g4 {[%emt 0:00:05]} Bh6+ {[%emt 0:00:01]} 33. Kc2 {[%emt 0:00:00]} Rc1+ {[%emt 0:00:02]} 34. Kb2 {[%emt 0:00:01][%cal Oh5h6]} Rf1 {[%emt 0:00:03]} 35. a6 {[%emt 0:00:05][%cal Ba5a6,Ba6a7][%mdl 32] White wants to mate with a7.} Bc1+ {[%emt 0:00:02]} 36. Kc2 {[%emt 0:00:05]} Bxa3 {[%emt 0:00:02]} 37. a7 {[%emt 0:00:01]} 1-0

[Event "European Women Blitz-ch 2024"]
[Site "Monaco"]
[Date "2025.01.10"]
[Round "7.10"]
[White "Gvetadze, Sofio"]
[Black "Narva, Mai"]
[Result "1/2-1/2"]
[Annotator "TA"]
[ECO "A04"]
[WhiteElo "2298"]
[BlackElo "2398"]
[PlyCount "158"]
[EventDate "2025.01.06"]
[EventType "swiss"]
[EventCountry "MNC"]
[SourceTitle "playchess.com"]
[Source "ChessBase"]
[SourceQuality "1"]
[TimeControl "180+2"]

{[%evp 12,158,18,20,33,15,19,17,26,16,22,6,40,32,52,11,110,20,51,0,37,29,34,15,16,3,0,6,10,7,12,0,0,-8,-19,-12,0,-9,35,-60,0,-264,8,8,3,0,231,222,450,487,496,299,291,131,217,133,391,102,154,110,179,0,0,-62,-14,-20,-29,-25,0,0,0,-239,-8,-10,-22,-20,-16,-13,-8,-17,-11,-16,0,-22,-4,-8,0,0,0,-16,-16,-16,-16,-16,-16,-63,-64,-351,-289,-297,-100,-99,-70,-72,-29,-64,-11,-29,-29,-29,0,0,0,0,0,0,0,0,0,0,0,0,0,-42,0,-37,-31,-31,-31,-70,-32,-36,-36,-35,0,0,0,0,0,0,0,0,0,0,0,0,0,0,0]} 1. Nf3 {[%emt 0:00:01]} g6 {[%emt 0:00:01]} 2. g3 {[%emt 0:00:02]} Bg7 {[%emt 0:00:01]} 3. Bg2 {[%emt 0:00:00]} c5 {[%emt 0:00:02]} 4. O-O {[%emt 0:00:03]} Nc6 {[%emt 0:00:01]} 5. d3 {[%emt 0:00:01]} d6 {[%emt 0:00:04]} 6. e4 {[%emt 0:00:03]} Bg4 {[%emt 0:00:08]} 7. h3 {[%emt 0:00:03]} Bxf3 {[%emt 0:00:03]} 8. Bxf3 {[%emt 0:00:03]} e6 {[%emt 0:00:08]} 9. Bg2 {[%emt 0:00:06]} Nge7 {[%emt 0:00:04]} 10. c3 {[%emt 0:00:06]} O-O {[%emt 0:00:04]} 11. Be3 {[%emt 0:00:02]} e5 {[%emt 0:00:16]} 12. Nd2 {[%emt 0:00:23]} Rc8 {[%emt 0:00:14]} 13. f4 {[%emt 0:00:12]} Qd7 {[%emt 0:00:17]} (13... exf4 $11 {keeps the balance.} 14. gxf4 Qd7) 14. Kh2 {[%emt 0:00:04]} (14. f5 $1 $16 {[%cal Rf5f6] Hoping for f6.} f6 (14... gxf5 15. exf5 f6 16. g4 $16) 15. fxg6) 14... b6 {[%emt 0:00:08]} 15. Nc4 {[%emt 0:00:48]} (15. f5 $14 gxf5 16. exf5) 15... f5 {[%emt 0:00:19]} 16. Qb3 {[%emt 0:00:17][%csl LRb6,LRd6,LRe5]} Kh8 {[%emt 0:00:06]} 17. Rad1 {[%emt 0:00:01]} Rcd8 {[%emt 0:00:22]} 18. Bc1 {[%emt 0:00:15]} exf4 {[%emt 0:00:26]} 19. Bxf4 {[%emt 0:00:12]} d5 {[%emt 0:00:02]} 20. exd5 {[%emt 0:00:08]} Nxd5 {[%emt 0:00:02]} 21. Bg5 {[%emt 0:00:01]} Rde8 {[%emt 0:00:09]} 22. Rde1 {[%emt 0:00:07]} h6 {[%emt 0:00:07]} 23. Bc1 {[%emt 0:00:02]} Nf6 {[%emt 0:00:06]} 24. Qc2 {[%emt 0:00:04]} b5 {[%emt 0:00:08]} 25. Na3 {[%emt 0:00:04]} (25. Bxc6 $1 $14 Qxc6 26. Ne5 Ng4+ 27. hxg4 Bxe5 28. Qg2 (28. Bxh6 Rf7 $18)) 25... a6 {[%emt 0:00:06]} (25... Rxe1 $15 26. Rxe1 Nh5) 26. Qf2 $2 {[%emt 0:00:05][%mdl 8192]} (26. Be3 $11 {and White stays safe.}) 26... b4 $2 {[%emt 0:00:10]} (26... Ne5 $19 27. Qg1 Nxd3 28. Rxe8 Rxe8 (28... Qxe8 $2 29. Qe3 $19)) 27. Nc4 $11 {[%emt 0:00:03]} (27. Qxc5 $2 Ne5 28. Rd1 (28. Qxb4 $2 Nxd3 29. Rxe8 Nxb4 $19) (28. Rxe5 $2 Rxe5 29. Qxb4 Re2 $19) 28... bxa3 29. Qxa3 Re6 $19 (29... Nxd3 30. c4 $11)) 27... Rxe1 {[%emt 0:00:09]} (27... Qxd3 {keeps more tension.} 28. Qxc5 Rxe1 29. Rxe1 Ne4) 28. Rxe1 {[%emt 0:00:01]} bxc3 $2 {[%emt 0:00:09]} (28... Qxd3 $11 29. Qxc5 Ne4 30. Rxe4 (30. Qxc6 $2 Qxg3+ 31. Kh1 Qxe1+ $19) 30... fxe4 31. Qxc6 bxc3) 29. Qxc5 $18 {[%emt 0:00:13]} cxb2 $2 {[%emt 0:00:01]} (29... Nd8 30. Ne5 (30. bxc3 f4 $18) 30... Qe8 31. bxc3 Kh7) 30. Bxb2 {[%emt 0:00:02]} (30. Qxc6 $2 Qxc6 (30... b1=B $2 31. Ba3 $18) (30... b1=R 31. Ne5 $17) (30... b1=Q $2 31. Qc5 $19) (30... bxc1=B 31. Rxc1 Re8 32. Qxd7 $15) (30... bxc1=N 31. Rxc1 Qxd3 32. Ne5 $11) 31. Bxb2 Qa4 $19) 30... Nd8 {[%emt 0:00:06]} 31. Ne5 {[%emt 0:00:06]} Qe8 {[%emt 0:00:02]} 32. Nf3 {[%emt 0:00:08]} (32. Qc7 $18 {has better winning chances.}) 32... Qf7 {[%emt 0:00:01]} (32... Qb5 $16 33. Qxb5 axb5) 33. Nh4 {[%emt 0:00:02]} Kh7 $2 {[%emt 0:00:01][%mdl 8192]} (33... Re8 $16 34. Re7 Rxe7 (34... Qxe7 $2 35. Nxg6+ Kg8 36. Nxe7+ $18) 35. Qxe7 Qxe7 36. Nxg6+ Kh7 37. Nxe7 Ng4+ 38. hxg4 Bxb2) 34. Qa5 $2 {[%emt 0:00:05]} (34. Re7 $1 $18 {[%cal Re7f7] and the rest is easy.} Qxa2 35. Nxf5 (35. Qb6 Ne6 $18) 35... gxf5 36. Qxf5+ Kh8 (36... Kg8 $2 37. Bd5+ Qxd5 38. Rxg7+ Kxg7 39. Qxd5 $18) 37. Bxf6 Rxf6 38. Re8+ Qg8 39. Rxg8+ Kxg8 40. Qc8) 34... Ne6 {[%emt 0:00:02]} (34... Re8) 35. Qxa6 {[%emt 0:00:04] White has more active pieces.} Ng5 {[%emt 0:00:01] [#]} (35... Nc7 $16 36. Qc4 Ncd5) 36. Qd6 $2 {[%emt 0:00:04]} (36. a4 $1 $18) 36... Qxa2 $11 {[%emt 0:00:01]} 37. Be5 {[%emt 0:00:06]} (37. Re2 $11 Qb3 38. Qa6) 37... Nf7 {[%emt 0:00:03]} (37... Qd2 $15 {should be considered.} 38. Rf1 Nf7) 38. Qc7 {[%emt 0:00:02]} Nxe5 {[%emt 0:00:01]} 39. Rxe5 {[%emt 0:00:01]} Ne8 {[%emt 0:00:05]} 40. Qe7 {[%emt 0:00:03]} Nf6 {[%emt 0:00:03]} 41. Rc5 $2 {[%emt 0:00:03] [#]} (41. Qc7 $11) 41... Qf7 $2 {[%emt 0:00:02]} (41... f4 $1 $19 42. Rc4 (42. gxf4 $2 Re8 $19) 42... fxg3+ 43. Kxg3 Qb2 44. Nxg6 Nh5+ (44... Kxg6 45. Rg4+ Nxg4 46. Be4+ Rf5 47. Qe6+ Bf6 48. Qxf5+ Kg7 49. Qd7+ Kf8 50. Qc8+ Ke7 51. Qc7+ Ke6 52. Qc4+ Ke7 53. Qc5+ Kf7 54. hxg4 $14) 45. Kh2 (45. Kh4 Qf2+ 46. Kg4 Qg3+ 47. Kxh5 Rf5+) 45... Qb8+ (45... Kxg6 46. Qe4+ Rf5 47. Rc6+ Bf6 48. Qg4+ Rg5 49. Qe4+ Rf5 50. Qg4+ Rg5 51. Qe4+ Rf5 $11) 46. Kg1 (46. Rc7 $2 Rc8 $19) 46... Qb6+ (46... Kxg6 47. Be4+ Rf5 48. Qe6+ Bf6 49. Bxf5+ Kg7 50. Qd7+ Kf8 51. Rc8+) 47. Kh1 Qxg6 (47... Kxg6 $2 48. Be4+ Rf5 49. Bxf5+ Kxf5 50. Qe4+ Kg5 51. h4+ Kf6 52. Rc6+ $18)) 42. Rc7 {[%emt 0:00:01]} Qxe7 {[%emt 0:00:01]} 43. Rxe7 {[%emt 0:00:01]} Rd8 {[%emt 0:00:00]} 44. Bf1 {[%emt 0:00:02]} Nd5 {[%emt 0:00:01]} 45. Ra7 {[%emt 0:00:01]} Ne3 {[%emt 0:00:01]} 46. Be2 {[%emt 0:00:01]} g5 {[%emt 0:00:01]} 47. Nf3 {[%emt 0:00:02]} Kg6 {[%emt 0:00:02]} 48. Kg1 {[%emt 0:00:02]} Nd5 {[%emt 0:00:01]} 49. Ra6+ {[%emt 0:00:01]} Kh7 {[%emt 0:00:02]} 50. Kf2 {[%emt 0:00:02]} Nb4 {[%emt 0:00:01]} 51. Ra3 {[%emt 0:00:02]} g4 {[%emt 0:00:02]} 52. hxg4 {[%emt 0:00:01]} fxg4 {[%emt 0:00:01][%cal Od8f8]} 53. Nh2 {[%emt 0:00:03]} (53. Nh4 $11) 53... h5 $15 {[%emt 0:00:01]} 54. Nf1 $2 {[%emt 0:00:02][%mdl 8192]} ({White should try} 54. Nxg4 $15 Rf8+ (54... hxg4 $2 55. Bxg4 Bd4+ 56. Kg2 $17) 55. Kg2) 54... Bd4+ {[%emt 0:00:01]} 55. Kg2 {[%emt 0:00:01]} Re8 $2 {[%emt 0:00:01]} (55... Rf8 $19 {is more deadly.} 56. Rb3 Nc2 57. Rb7+ Kh6) 56. Bd1 $17 {[%emt 0:00:05]} Re1 {[%emt 0:00:04]} 57. Ra4 {[%emt 0:00:02]} Nc6 {[%emt 0:00:04]} ({Of course not} 57... Nxd3 58. Bxg4 hxg4 59. Rxd4 Re2+ 60. Kg1 $11) (57... Bc3 $5 58. Bb3 Rb1 $15 (58... Nxd3 59. Rc4 $11)) 58. Bb3 {[%emt 0:00:02]} Rb1 {[%emt 0:00:02]} ({Better is} 58... Re2+ $15 59. Kh1 Rf2) 59. Bd5 {[%emt 0:00:02]} Rb2+ {[%emt 0:00:01]} 60. Kh1 {[%emt 0:00:01]} Rb1 {[%emt 0:00:06]} 61. Bxc6 {[%emt 0:00:03]} Rxf1+ $11 {[%emt 0:00:02][%mdl 4096] Endgame KRB-KRB} 62. Kg2 {[%emt 0:00:01]} Rf2+ {[%emt 0:00:01]} 63. Kh1 {[%emt 0:00:02]} Be5 {[%emt 0:00:03]} 64. Ra5 {[%emt 0:00:02]} Bxg3 {[%emt 0:00:04] And now ...h4 would win.} 65. Rxh5+ {[%emt 0:00:01]} Kg6 {[%emt 0:00:01]} 66. Be8+ {[%emt 0:00:01]} Kf6 {[%emt 0:00:02]} 67. Rh7 {[%emt 0:00:04]} Rd2 {[%emt 0:00:03][%cal Og3e5]} 68. Bb5 {[%emt 0:00:05]} Bf4 {[%emt 0:00:03]} 69. Rh8 {[%emt 0:00:03]} g3 {[%emt 0:00:02] ( -> ...g2+)} 70. Bc6 {[%emt 0:00:02]} Rxd3 {[%emt 0:00:03]} (70... g2+ $5 71. Bxg2 Rd1+ (71... Rxd3 72. Rf8+ Kg5 73. Ba8 $11) 72. Bf1 Rxf1+ 73. Kg2 Ra1 $19) 71. Rf8+ {[%emt 0:00:01]} Kg5 {[%emt 0:00:01]} 72. Rg8+ {[%emt 0:00:02]} Kf6 {[%emt 0:00:02]} 73. Rf8+ {[%emt 0:00:01]} Ke5 {[%emt 0:00:01]} 74. Re8+ {[%emt 0:00:01]} Kd4 {[%emt 0:00:02]} 75. Re4+ {[%emt 0:00:01]} Kc5 {[%emt 0:00:01]} 76. Rxf4 {[%emt 0:00:02]} Kxc6 {[%emt 0:00:01]} 77. Kg2 {[%emt 0:00:01]} Rc3 {[%emt 0:00:01]} 78. Rg4 {[%emt 0:00:01]} Rd3 {[%emt 0:00:02]} 79. Rxg3 {[%emt 0:00:01]} Rxg3+ {[%emt 0:00:01]} 1/2-1/2

[Event "European Women Blitz-ch 2024"]
[Site "Monaco"]
[Date "2025.01.10"]
[Round "7.11"]
[White "Sabiani, Chjara"]
[Black "Cramling Bellon, Anna"]
[Result "1/2-1/2"]
[Annotator "TA"]
[ECO "A57"]
[WhiteElo "1835"]
[BlackElo "2052"]
[PlyCount "100"]
[EventDate "2025.01.06"]
[EventType "swiss"]
[EventCountry "MNC"]
[SourceTitle "playchess.com"]
[Source "ChessBase"]
[SourceQuality "1"]
[TimeControl "180+2"]

{[%evp 10,99,100,94,104,79,66,79,84,80,97,85,138,138,133,137,133,127,137,133,153,130,141,73,76,76,56,63,66,62,63,86,110,12,134,139,120,148,131,122,127,-27,0,-77,-75,-88,-86,-93,-80,-83,-82,-102,-60,-80,-66,-86,-61,-80,0,-90,-80,-80,-80,-79,-9,-80,-80,-80,-14,-13,0,-80,-12,-61,-21,-24,0,-51,-4,-5,-6,-16,-8,-8,0,0,0,0,0,-8,-8,-29999]} 1. d4 {[%emt 0:00:01]} Nf6 {[%emt 0:00:01]} 2. c4 {[%emt 0:00:01]} c5 {[%emt 0:00:01]} 3. d5 {[%emt 0:00:01]} b5 {[%emt 0:00:01]} 4. cxb5 {[%emt 0:00:07]} a6 {[%emt 0:00:00]} 5. Nc3 {[%emt 0:00:01]} g6 {[%emt 0:00:03]} 6. e4 {[%emt 0:00:02] Threatens to win with e5.} d6 {[%emt 0:00:02]} 7. Bd2 {[%emt 0:00:07]} Bg7 {[%emt 0:00:02]} 8. a4 {[%emt 0:00:03]} O-O {[%emt 0:00:07]} 9. Nf3 {[%emt 0:00:01]} Nbd7 {[%emt 0:00:05]} 10. h3 {[%emt 0:00:03]} Qa5 {[%emt 0:00:13]} (10... e6 $142) 11. Bd3 $16 {[%emt 0:00:14]} axb5 {[%emt 0:00:10]} 12. Nxb5 {[%emt 0:00:08]} Qb6 {[%emt 0:00:04][%cal Oc5c4]} 13. O-O {[%emt 0:00:13]} Ba6 {[%emt 0:00:11][%cal Oc5c4]} 14. Qe2 {[%emt 0:00:25]} Rfb8 {[%emt 0:00:17]} 15. Bc3 {[%emt 0:00:02]} Ne8 {[%emt 0:00:40]} 16. e5 {[%emt 0:00:12]} (16. Rfc1) 16... dxe5 {[%emt 0:00:05]} 17. Nxe5 {[%emt 0:00:03]} Nxe5 {[%emt 0:00:12]} 18. Bxe5 {[%emt 0:00:01]} Bxe5 {[%emt 0:00:02]} 19. Qxe5 {[%emt 0:00:02]} Rb7 {[%emt 0:00:06]} 20. Rfe1 {[%emt 0:00:37] White has more active pieces.} Rd8 {[%emt 0:00:02] [#]} 21. d6 {[%emt 0:00:40]} Nxd6 {[%emt 0:00:07]} (21... Bxb5 $11 22. axb5 (22. Bxb5 Nxd6 23. Bf1 Ra8 $11) 22... Qxd6) 22. a5 {[%emt 0:00:01]} Qc6 {[%emt 0:00:10]} 23. Nxd6 {[%emt 0:00:14]} Qxd6 {[%emt 0:00:07]} 24. Bxa6 {[%emt 0:00:11]} Qxa6 {[%emt 0:00:01]} 25. Rad1 $2 {[%emt 0:00:04] Prevents Rd2} (25. Qxc5 $16 Rxb2 26. Qxe7 (26. Rxe7 Qf6 $16)) 25... Rc8 {[%emt 0:00:07]} 26. Re3 {[%emt 0:00:15]} (26. Qc3 $11) 26... Qxa5 $17 {[%emt 0:00:04]} 27. Red3 {[%emt 0:00:01]} Qc7 {[%emt 0:00:08]} 28. Qe2 {[%emt 0:00:03]} Rcb8 {[%emt 0:00:16]} 29. R1d2 {[%emt 0:00:02]} h5 {[%emt 0:00:02]} 30. Rc3 {[%emt 0:00:01]} Qb6 {[%emt 0:00:05]} 31. Rdc2 {[%emt 0:00:02]} Rc8 {[%emt 0:00:03]} 32. Qe5 {[%emt 0:00:01][%cal Rc3c5]} Rbc7 {[%emt 0:00:02]} 33. Qg5 {[%emt 0:00:03]} Qf6 {[%emt 0:00:04]} (33... c4 $17) 34. Qd5 {[%emt 0:00:01]} (34. Qxf6 $11 exf6 35. Kh2) 34... Kg7 {[%emt 0:00:02]} (34... e6 {simplifies} 35. Qd6 Rb7 36. Rxc5 Rxc5 37. Qxc5 Rxb2 38. Rxb2 Qxb2 39. Qe3 Qb1+) 35. Rc4 {[%emt 0:00:03][%cal Od5e4]} Qd6 {[%emt 0:00:02]} 36. Qf3 {[%emt 0:00:02]} Rd8 {[%emt 0:00:06]} (36... Ra7 $17) 37. Qc3+ {[%emt 0:00:03]} (37. b4 $11 {remains equal.}) 37... f6 {[%emt 0:00:11]} 38. Rxc5 {[%emt 0:00:02]} Qd1+ {[%emt 0:00:04]} ({Better is} 38... Rxc5 $17 39. Qxc5 Qxc5 40. Rxc5 Rd1+ 41. Kh2 Rd2) 39. Kh2 $11 {[%emt 0:00:01]} Qd6+ {[%emt 0:00:03]} (39... Ra7 $11) 40. Kg1 $17 {[%emt 0:00:01]} Ra7 {[%emt 0:00:04]} (40... Rxc5 $17 41. Qxc5 Qxc5 42. Rxc5 Rd1+ 43. Kh2 Rd2) 41. Ra5 {[%emt 0:00:03]} (41. Rc1 $11) 41... Qd1+ {[%emt 0:00:05]} 42. Kh2 {[%emt 0:00:01]} Qd6+ $40 {[%emt 0:00:04][%mdl 128] White needs to defend precisely.} 43. Kg1 {[%emt 0:00:02]} Rda8 {[%emt 0:00:01]} (43... Qb8 $15 44. Rc1 Rxa5 45. Qxa5 Qxb2) 44. Rxa7 $11 {[%emt 0:00:03]} Rxa7 {[%emt 0:00:01][%cal Ba8a7,Ba7b7,Bb7b5,Bb5e5][%mdl 4128] Endgame KQR-KQR} 45. b4 {[%emt 0:00:03]} Rb7 {[%emt 0:00:02]} 46. Rb2 {[%emt 0:00:04]} Rb5 {[%emt 0:00:01]} 47. Qc4 {[%emt 0:00:02]} Qb6 {[%emt 0:00:02]} 48. g3 {[%emt 0:00:02]} Re5 {[%emt 0:00:04]} 49. Kg2 {[%emt 0:00:01]} Qb7+ {[%emt 0:00:01]} 50. Kf1 $2 {[%emt 0:00:02][%mdl 8192]} (50. f3 $11) 50... Qh1# {[%emt 0:00:00]} 1/2-1/2

[Event "European Women Blitz-ch 2024"]
[Site "Monaco"]
[Date "2025.01.10"]
[Round "7.12"]
[White "Injac, Teodora"]
[Black "Hrebenshchykova, Yelyzaveta"]
[Result "1-0"]
[Annotator "TA"]
[ECO "E62"]
[WhiteElo "2453"]
[BlackElo "2280"]
[PlyCount "59"]
[EventDate "2025.01.06"]
[EventType "swiss"]
[EventCountry "MNC"]
[SourceTitle "playchess.com"]
[Source "ChessBase"]
[SourceQuality "1"]
[TimeControl "180+2"]

{[%evp 13,59,28,44,38,26,25,48,38,43,24,41,35,57,33,66,11,27,25,181,164,213,44,45,34,196,211,214,207,239,243,633,632,642,637,805,743,770,743,775,661,854,846,820,789,787,770,1372,1342]} 1. Nf3 {[%emt 0:00:01]} Nf6 {[%emt 0:00:00]} 2. g3 {[%emt 0:00:01]} g6 {[%emt 0:00:05]} 3. Bg2 {[%emt 0:00:01]} Bg7 {[%emt 0:00:00]} 4. d4 {[%emt 0:00:02]} O-O {[%emt 0:00:02]} 5. O-O {[%emt 0:00:03]} c6 {[%emt 0:00:12]} 6. c4 {[%emt 0:00:06]} d6 {[%emt 0:00:01]} 7. Nc3 {[%emt 0:00:02][%cal Bb1c3,Bc3a4,Ba4c5,Bc5d3][%mdl 32]} Qb6 {[%emt 0:00:01] [#]} 8. c5 $1 {[%emt 0:00:03]} dxc5 {[%emt 0:00:02]} 9. Na4 {[%emt 0:00:01][%csl LRb6,LRc5]} Qd8 {[%emt 0:00:09]} 10. Nxc5 {[%emt 0:00:02]} Nbd7 {[%emt 0:00:01][%cal Bb8d7,Bd7f6,Bf6g4][%mdl 32]} 11. Nd3 {[%emt 0:00:01]} a5 {[%emt 0:00:02]} 12. Re1 {[%emt 0:00:06]} Ne4 {[%emt 0:00:25]} 13. Nfe5 {[%emt 0:00:08]} Ndf6 {[%emt 0:00:06]} 14. Be3 {[%emt 0:00:15]} (14. e3 $14) 14... a4 {[%emt 0:00:05]} 15. Qc2 {[%emt 0:00:05]} Bf5 $2 {[%emt 0:00:12]} (15... Qa5 $11 {and Black has nothing to worry.}) 16. g4 $1 $18 {[%emt 0:00:09]} Bxg4 {[%emt 0:00:36]} (16... Nxg4 $142 17. Nxg4 Bxg4) 17. Nxg4 $2 {[%emt 0:00:31]} ({White should try} 17. Bxe4 $18 {Hoping for Bg2.} Nxe4 18. Nxg4) 17... Nxg4 $14 {[%emt 0:00:02]} 18. Bxe4 {[%emt 0:00:01]} Bxd4 $2 {[%emt 0:00:16]} (18... Qd6 $1 $14 19. Qd2 Qxh2+ (19... Nxh2 20. Qb4 $16) 20. Kf1 Nxe3+ 21. Qxe3 Rad8) 19. Bxd4 $18 {[%emt 0:00:07]} Qxd4 {[%emt 0:00:01]} 20. Bf3 {[%emt 0:00:05]} Nh6 {[%emt 0:00:30]} 21. Rad1 {[%emt 0:00:13]} Ra5 $2 {[%emt 0:00:04]} (21... Qh4 22. Bg2 Rfd8) 22. Qd2 {[%emt 0:00:08][%csl LRa5,LRh6]} Rf5 {[%emt 0:00:39]} 23. Qxh6 {[%emt 0:00:03]} e5 {[%emt 0:00:01]} 24. Qe3 {[%emt 0:00:31]} Qh4 {[%emt 0:00:00]} 25. Kh1 {[%emt 0:00:15]} Re8 {[%emt 0:00:03][%cal Bf8e8,Be8d8,Bd8d4][%mdl 32]} 26. Qe4 {[%emt 0:00:02]} Qf6 {[%emt 0:00:10]} 27. Rg1 {[%emt 0:00:05]} h5 {[%emt 0:00:01]} 28. Bg2 {[%emt 0:00:26]} Rd8 {[%emt 0:00:03]} 29. Bh3 {[%emt 0:00:04]} Rd4 {[%emt 0:00:02]} 30. Qxf5 {[%emt 0:00:08]} 1-0